{"text_format":"1","workbook":"xlsx","n_sheets":6,"sheets":["Resumen del presupuesto mensual","Ingresos","Gastos operativos","Gastos de personal","instructivo","Hoja1"],"not_rendered":{"charts":4,"images":41,"macros":1,"external_links":1,"defined_names":15,"comments":0,"pivot_tables":0},"unopened":[],"bounds":{"document_bytes":16777216,"sheet_cells":100000,"rows_first":2000,"rows_last":500,"rows_between":2000,"halvings":0,"cell_chars":16384,"cell_head_chars":4096},"cells_cut":0,"cells_raw":0,"read":"whole","date_system":"1900"}

{"sheet":"Resumen del presupuesto mensual","index":0,"n_rows":19,"n_cols":8,"rows_kept":19,"cut":false,"hidden":false,"merged":[[1,4,1,6],[3,4,3,9],[4,4,4,9],[5,4,5,9],[6,4,6,9],[7,4,7,9],[8,4,8,9],[9,4,9,9],[10,4,10,9],[14,0,14,2]]}
[]
[null,null,null,null,"PRESUPUESTO MENSUAL"]
[]
[null,null,null,"Nombre/ Razón Social","NUBOX"]
[null,null,null,"RUT","11.111.111-1"]
[null,null,null,"Representante Legal","Alexander Russo"]
[null,null,null,"C.I. Representante Legal","1.111.111-1"]
[null,null,null,"Contador ","Dayana Huala"]
[null,null,null,"C.I. Contador","1.111.111-1"]
[null,null,null,"Mes","Octubre"]
[null,null,null,"Año Comercial",2020]
[]
[]
[]
["RESUMEN"]
[null,null,null,"TOTALES DEL PRESUPUESTO","ESTIMADO","REAL","DIFERENCIA","Variación%"]
[null,null,null,"Ingresos",{"$f":"Ingresos[[#Totals],[ESTIMADO]]","v":3000},{"$f":"Ingresos[[#Totals],[REAL]]","v":3300},{"$f":"Totales[[#This Row],[REAL]]-Totales[[#This Row],[ESTIMADO]]","v":300},{"$f":"+(Totales[[#This Row],[DIFERENCIA]]*100%)/Totales[[#This Row],[ESTIMADO]]","v":0.1}]
[null,null,null,"Gastos",{"$f":"GastosOperativos[[#Totals],[ESTIMADO]]+GastosPersonal[[#Totals],[ESTIMADO]]","v":50500},{"$f":"GastosOperativos[[#Totals],[REAL]]+GastosPersonal[[#Totals],[REAL]]","v":47160},{"$f":"Totales[[#This Row],[REAL]]-Totales[[#This Row],[ESTIMADO]]","v":-3340},{"$f":"+(Totales[[#This Row],[DIFERENCIA]]*100%)/Totales[[#This Row],[ESTIMADO]]","v":-6.6138613861386142E-2}]
[null,null,null,"Saldo (ingresos menos gastos)",{"$f":"E17-E18","v":-47500},{"$f":"F17-F18","v":-43860},{"$f":"Totales[[#Totals],[REAL]]-Totales[[#Totals],[ESTIMADO]]","v":3640}]

{"sheet":"Ingresos","index":1,"n_rows":17,"n_cols":8,"rows_kept":17,"cut":false,"hidden":true,"merged":[[1,4,1,5],[8,2,8,3],[8,4,8,10],[9,4,9,10],[10,2,10,3],[10,4,10,10],[5,2,5,3],[5,4,5,10],[6,2,6,3],[6,4,6,10],[7,2,7,3],[7,4,7,10],[3,2,3,3],[3,4,3,10],[4,2,4,3],[4,4,4,10]]}
[]
[null,null,null,null,"INGRESOS"]
[]
[null,null,"Nombre/ Razón Social",null,{"$f":"+'Resumen del presupuesto mensual'!E4:J4","v":"NUBOX"}]
[null,null,"RUT",null,{"$f":"+'Resumen del presupuesto mensual'!E5:J5","v":"11.111.111-1"}]
[null,null,"Representante Legal",null,{"$f":"+'Resumen del presupuesto mensual'!E6:J6","v":"Alexander Russo"}]
[null,null,"C.I. Representante Legal",null,{"$f":"+'Resumen del presupuesto mensual'!E7:J7","v":"1.111.111-1"}]
[null,null,"Contador",null,{"$f":"+'Resumen del presupuesto mensual'!E8:J8","v":"Dayana Huala"}]
[null,null,"C.I. Contador",null,{"$f":"+'Resumen del presupuesto mensual'!E9:J9","v":"1.111.111-1"}]
[null,null,"Mes",null,{"$f":"+'Resumen del presupuesto mensual'!E10:J10","v":"Octubre"}]
[null,null,"Año Comercial",null,{"$f":"+'Resumen del presupuesto mensual'!E11:J11","v":2020}]
[]
[null,null,null,"INGRESOS","ESTIMADO","REAL","DIFERENCIA","Variación%"]
[null,null,null,"Ventas netas",1000,1500,{"$f":"Ingresos[[#This Row],[REAL]]-Ingresos[[#This Row],[ESTIMADO]]","v":500},{"$f":"+(Ingresos[[#This Row],[DIFERENCIA]]*100%)/Ingresos[[#This Row],[ESTIMADO]]","v":0.5}]
[null,null,null,"Ingresos por intereses",1000,1100,{"$f":"Ingresos[[#This Row],[REAL]]-Ingresos[[#This Row],[ESTIMADO]]","v":100},{"$f":"+(Ingresos[[#This Row],[DIFERENCIA]]*100%)/Ingresos[[#This Row],[ESTIMADO]]","v":0.1}]
[null,null,null,"Ventas de activos (pérdidas y ganancias)",1000,700,{"$f":"Ingresos[[#This Row],[REAL]]-Ingresos[[#This Row],[ESTIMADO]]","v":-300},{"$f":"+(Ingresos[[#This Row],[DIFERENCIA]]*100%)/Ingresos[[#This Row],[ESTIMADO]]","v":-0.3}]
[null,null,null,"Ingresos totales",{"$f":"SUBTOTAL(109,Ingresos[ESTIMADO])","v":3000},{"$f":"SUBTOTAL(109,Ingresos[REAL])","v":3300},{"$f":"SUBTOTAL(109,Ingresos[DIFERENCIA])","v":300},{"$f":"+(Ingresos[[#Totals],[DIFERENCIA]]*100%)/Ingresos[[#Totals],[ESTIMADO]]","v":0.1}]

{"sheet":"Gastos operativos","index":2,"n_rows":37,"n_cols":9,"rows_kept":37,"cut":false,"hidden":true,"merged":[[7,2,7,3],[7,4,7,10],[8,4,8,10],[9,2,9,3],[9,4,9,10],[4,2,4,3],[4,4,4,10],[5,2,5,3],[5,4,5,10],[6,2,6,3],[6,4,6,10],[1,4,1,6],[2,2,2,3],[2,4,2,10],[3,2,3,3],[3,4,3,10]]}
[]
[null,null,null,null,"GASTOS OPERATIVOS"]
[null,null,"Nombre/ Razón Social",null,{"$f":"+'Resumen del presupuesto mensual'!E4:J4","v":"NUBOX"}]
[null,null,"RUT",null,{"$f":"+'Resumen del presupuesto mensual'!E5:J5","v":"11.111.111-1"}]
[null,null,"Representante Legal",null,{"$f":"+'Resumen del presupuesto mensual'!E6:J6","v":"Alexander Russo"}]
[null,null,"C.I. Representante Legal",null,{"$f":"+'Resumen del presupuesto mensual'!E7:J7","v":"1.111.111-1"}]
[null,null,"Contador",null,{"$f":"+'Resumen del presupuesto mensual'!E8:J8","v":"Dayana Huala"}]
[null,null,"C.I. Contador",null,{"$f":"+'Resumen del presupuesto mensual'!E9:J9","v":"1.111.111-1"}]
[null,null,"Mes",null,{"$f":"+'Resumen del presupuesto mensual'!E10:J10","v":"Octubre"}]
[null,null,"Año Comercial",null,{"$f":"+'Resumen del presupuesto mensual'!E11:J11","v":2020}]
[]
[null,null,null,null,"GASTOS OPERATIVOS","ESTIMADO","REAL","DIFERENCIA","Variación%"]
[null,null,null,null,"Almacenamiento ",1000,840,{"$f":"GastosOperativos[[#This Row],[ESTIMADO]]-GastosOperativos[[#This Row],[REAL]]","v":160},{"$f":"+(GastosOperativos[[#This Row],[DIFERENCIA]]*100%)/GastosOperativos[[#This Row],[ESTIMADO]]","v":0.16}]
[null,null,null,null,"Arriendos",1000,840,{"$f":"GastosOperativos[[#This Row],[ESTIMADO]]-GastosOperativos[[#This Row],[REAL]]","v":160},{"$f":"+(GastosOperativos[[#This Row],[DIFERENCIA]]*100%)/GastosOperativos[[#This Row],[ESTIMADO]]","v":0.16}]
[null,null,null,null,"Despacho",1000,840,{"$f":"GastosOperativos[[#This Row],[ESTIMADO]]-GastosOperativos[[#This Row],[REAL]]","v":160},{"$f":"+(GastosOperativos[[#This Row],[DIFERENCIA]]*100%)/GastosOperativos[[#This Row],[ESTIMADO]]","v":0.16}]
[null,null,null,null,"Suscripciones",1000,840,{"$f":"GastosOperativos[[#This Row],[ESTIMADO]]-GastosOperativos[[#This Row],[REAL]]","v":160},{"$f":"+(GastosOperativos[[#This Row],[DIFERENCIA]]*100%)/GastosOperativos[[#This Row],[ESTIMADO]]","v":0.16}]
[null,null,null,null,"Depreciación",1000,840,{"$f":"GastosOperativos[[#This Row],[ESTIMADO]]-GastosOperativos[[#This Row],[REAL]]","v":160},{"$f":"+(GastosOperativos[[#This Row],[DIFERENCIA]]*100%)/GastosOperativos[[#This Row],[ESTIMADO]]","v":0.16}]
[null,null,null,null,"C. Monetaria",1000,840,{"$f":"GastosOperativos[[#This Row],[ESTIMADO]]-GastosOperativos[[#This Row],[REAL]]","v":160},{"$f":"+(GastosOperativos[[#This Row],[DIFERENCIA]]*100%)/GastosOperativos[[#This Row],[ESTIMADO]]","v":0.16}]
[null,null,null,null,"Descuentos",1000,840,{"$f":"GastosOperativos[[#This Row],[ESTIMADO]]-GastosOperativos[[#This Row],[REAL]]","v":160},{"$f":"+(GastosOperativos[[#This Row],[DIFERENCIA]]*100%)/GastosOperativos[[#This Row],[ESTIMADO]]","v":0.16}]
[null,null,null,null,"Deuda Incobrable",1000,840,{"$f":"GastosOperativos[[#This Row],[ESTIMADO]]-GastosOperativos[[#This Row],[REAL]]","v":160},{"$f":"+(GastosOperativos[[#This Row],[DIFERENCIA]]*100%)/GastosOperativos[[#This Row],[ESTIMADO]]","v":0.16}]
[null,null,null,null,"Créditos",1000,840,{"$f":"GastosOperativos[[#This Row],[ESTIMADO]]-GastosOperativos[[#This Row],[REAL]]","v":160},{"$f":"+(GastosOperativos[[#This Row],[DIFERENCIA]]*100%)/GastosOperativos[[#This Row],[ESTIMADO]]","v":0.16}]
[null,null,null,null,"Costo de venta",1000,840,{"$f":"GastosOperativos[[#This Row],[ESTIMADO]]-GastosOperativos[[#This Row],[REAL]]","v":160},{"$f":"+(GastosOperativos[[#This Row],[DIFERENCIA]]*100%)/GastosOperativos[[#This Row],[ESTIMADO]]","v":0.16}]
[null,null,null,null,"Impuestos",1000,840,{"$f":"GastosOperativos[[#This Row],[ESTIMADO]]-GastosOperativos[[#This Row],[REAL]]","v":160},{"$f":"+(GastosOperativos[[#This Row],[DIFERENCIA]]*100%)/GastosOperativos[[#This Row],[ESTIMADO]]","v":0.16}]
[null,null,null,null,"Intereses",1000,840,{"$f":"GastosOperativos[[#This Row],[ESTIMADO]]-GastosOperativos[[#This Row],[REAL]]","v":160},{"$f":"+(GastosOperativos[[#This Row],[DIFERENCIA]]*100%)/GastosOperativos[[#This Row],[ESTIMADO]]","v":0.16}]
[null,null,null,null,"Asesorías",1000,840,{"$f":"GastosOperativos[[#This Row],[ESTIMADO]]-GastosOperativos[[#This Row],[REAL]]","v":160},{"$f":"+(GastosOperativos[[#This Row],[DIFERENCIA]]*100%)/GastosOperativos[[#This Row],[ESTIMADO]]","v":0.16}]
[null,null,null,null,"Mantención ",1000,840,{"$f":"GastosOperativos[[#This Row],[ESTIMADO]]-GastosOperativos[[#This Row],[REAL]]","v":160},{"$f":"+(GastosOperativos[[#This Row],[DIFERENCIA]]*100%)/GastosOperativos[[#This Row],[ESTIMADO]]","v":0.16}]
[null,null,null,null,"Reparaciones",1000,840,{"$f":"GastosOperativos[[#This Row],[ESTIMADO]]-GastosOperativos[[#This Row],[REAL]]","v":160},{"$f":"+(GastosOperativos[[#This Row],[DIFERENCIA]]*100%)/GastosOperativos[[#This Row],[ESTIMADO]]","v":0.16}]
[null,null,null,null,"Mat. de oficina",1000,840,{"$f":"GastosOperativos[[#This Row],[ESTIMADO]]-GastosOperativos[[#This Row],[REAL]]","v":160},{"$f":"+(GastosOperativos[[#This Row],[DIFERENCIA]]*100%)/GastosOperativos[[#This Row],[ESTIMADO]]","v":0.16}]
[null,null,null,null,"Gastos Notariales",1000,840,{"$f":"GastosOperativos[[#This Row],[ESTIMADO]]-GastosOperativos[[#This Row],[REAL]]","v":160},{"$f":"+(GastosOperativos[[#This Row],[DIFERENCIA]]*100%)/GastosOperativos[[#This Row],[ESTIMADO]]","v":0.16}]
[null,null,null,null,"Publicidad",1000,840,{"$f":"GastosOperativos[[#This Row],[ESTIMADO]]-GastosOperativos[[#This Row],[REAL]]","v":160},{"$f":"+(GastosOperativos[[#This Row],[DIFERENCIA]]*100%)/GastosOperativos[[#This Row],[ESTIMADO]]","v":0.16}]
[null,null,null,null,"Seguro",1000,840,{"$f":"GastosOperativos[[#This Row],[ESTIMADO]]-GastosOperativos[[#This Row],[REAL]]","v":160},{"$f":"+(GastosOperativos[[#This Row],[DIFERENCIA]]*100%)/GastosOperativos[[#This Row],[ESTIMADO]]","v":0.16}]
[null,null,null,null,"Servicios públicos",1000,840,{"$f":"GastosOperativos[[#This Row],[ESTIMADO]]-GastosOperativos[[#This Row],[REAL]]","v":160},{"$f":"+(GastosOperativos[[#This Row],[DIFERENCIA]]*100%)/GastosOperativos[[#This Row],[ESTIMADO]]","v":0.16}]
[null,null,null,null,"Suministros básicos",1000,840,{"$f":"GastosOperativos[[#This Row],[ESTIMADO]]-GastosOperativos[[#This Row],[REAL]]","v":160},{"$f":"+(GastosOperativos[[#This Row],[DIFERENCIA]]*100%)/GastosOperativos[[#This Row],[ESTIMADO]]","v":0.16}]
[null,null,null,null,"Internet",1000,840,{"$f":"GastosOperativos[[#This Row],[ESTIMADO]]-GastosOperativos[[#This Row],[REAL]]","v":160},{"$f":"+(GastosOperativos[[#This Row],[DIFERENCIA]]*100%)/GastosOperativos[[#This Row],[ESTIMADO]]","v":0.16}]
[null,null,null,null,"Telefonía",1000,840,{"$f":"GastosOperativos[[#This Row],[ESTIMADO]]-GastosOperativos[[#This Row],[REAL]]","v":160},{"$f":"+(GastosOperativos[[#This Row],[DIFERENCIA]]*100%)/GastosOperativos[[#This Row],[ESTIMADO]]","v":0.16}]
[null,null,null,null,"Otros",1000,840,{"$f":"GastosOperativos[[#This Row],[ESTIMADO]]-GastosOperativos[[#This Row],[REAL]]","v":160},{"$f":"+(GastosOperativos[[#This Row],[DIFERENCIA]]*100%)/GastosOperativos[[#This Row],[ESTIMADO]]","v":0.16}]
[null,null,null,null,"Total de gastos operativos",{"$f":"SUBTOTAL(109,GastosOperativos[ESTIMADO])","v":24000},{"$f":"SUBTOTAL(109,GastosOperativos[REAL])","v":20160},{"$f":"SUBTOTAL(109,GastosOperativos[DIFERENCIA])","v":3840},{"$f":"+(GastosOperativos[[#Totals],[DIFERENCIA]]*100%)/GastosOperativos[[#Totals],[ESTIMADO]]","v":0.16}]

{"sheet":"Gastos de personal","index":3,"n_rows":19,"n_cols":7,"rows_kept":19,"cut":false,"hidden":true,"merged":[[7,2,7,3],[7,4,7,11],[8,4,8,11],[9,2,9,3],[9,4,9,11],[4,2,4,3],[4,4,4,11],[5,2,5,3],[5,4,5,11],[6,2,6,3],[6,4,6,11],[2,2,2,3],[2,4,2,11],[3,2,3,3],[3,4,3,11],[1,4,1,11]]}
[]
[null,null,null,null,"GASTOS DE PERSONAL"]
[null,null,"Nombre/ Razón Social",null,{"$f":"+'Resumen del presupuesto mensual'!E4:J4","v":"NUBOX"}]
[null,null,"RUT",null,{"$f":"+'Resumen del presupuesto mensual'!E5:J5","v":"11.111.111-1"}]
[null,null,"Representante Legal",null,{"$f":"+'Resumen del presupuesto mensual'!E6:J6","v":"Alexander Russo"}]
[null,null,"C.I. Representante Legal",null,{"$f":"+'Resumen del presupuesto mensual'!E7:J7","v":"1.111.111-1"}]
[null,null,"Contador",null,{"$f":"+'Resumen del presupuesto mensual'!E8:J8","v":"Dayana Huala"}]
[null,null,"C.I. Contador",null,{"$f":"+'Resumen del presupuesto mensual'!E9:J9","v":"1.111.111-1"}]
[null,null,"Mes",null,{"$f":"+'Resumen del presupuesto mensual'!E10:J10","v":"Octubre"}]
[null,null,"Año Comercial",null,{"$f":"+'Resumen del presupuesto mensual'!E11:J11","v":2020}]
[]
[]
[null,null,"GASTOS DE PERSONAL","ESTIMADO","REAL","DIFERENCIA","Variación%"]
[null,null,"Sueldos Fijos",9500,9700,{"$f":"GastosPersonal[[#This Row],[ESTIMADO]]-GastosPersonal[[#This Row],[REAL]]","v":-200},{"$f":"+(GastosPersonal[[#This Row],[DIFERENCIA]]*100%)/GastosPersonal[[#This Row],[ESTIMADO]]","v":-2.1052631578947368E-2}]
[null,null,"Honorarios Profesionales",4000,3800,{"$f":"GastosPersonal[[#This Row],[ESTIMADO]]-GastosPersonal[[#This Row],[REAL]]","v":200},{"$f":"+(GastosPersonal[[#This Row],[DIFERENCIA]]*100%)/GastosPersonal[[#This Row],[ESTIMADO]]","v":0.05}]
[null,null,"Obligaciones Laborales",4000,4000,{"$f":"GastosPersonal[[#This Row],[ESTIMADO]]-GastosPersonal[[#This Row],[REAL]]","v":0},{"$f":"+(GastosPersonal[[#This Row],[DIFERENCIA]]*100%)/GastosPersonal[[#This Row],[ESTIMADO]]","v":0}]
[null,null,"Bonos ",4000,5000,{"$f":"GastosPersonal[[#This Row],[ESTIMADO]]-GastosPersonal[[#This Row],[REAL]]","v":-1000},{"$f":"+(GastosPersonal[[#This Row],[DIFERENCIA]]*100%)/GastosPersonal[[#This Row],[ESTIMADO]]","v":-0.25}]
[null,null,"Comisiones",5000,4500,{"$f":"GastosPersonal[[#This Row],[ESTIMADO]]-GastosPersonal[[#This Row],[REAL]]","v":500},{"$f":"+(GastosPersonal[[#This Row],[DIFERENCIA]]*100%)/GastosPersonal[[#This Row],[ESTIMADO]]","v":0.1}]
[null,null,"Gastos de personal totales",{"$f":"SUBTOTAL(109,GastosPersonal[ESTIMADO])","v":26500},{"$f":"SUBTOTAL(109,GastosPersonal[REAL])","v":27000},{"$f":"SUBTOTAL(109,GastosPersonal[DIFERENCIA])","v":-500},{"$f":"+(GastosPersonal[[#Totals],[DIFERENCIA]]*100%/GastosPersonal[[#Totals],[ESTIMADO]])","v":-1.8867924528301886E-2}]

{"sheet":"instructivo","index":4,"n_rows":102,"n_cols":68,"rows_kept":102,"cut":false,"hidden":true,"merged":[[38,17,45,20],[55,22,56,35],[55,37,56,50],[25,1,27,8],[28,5,30,8],[19,1,20,8],[19,22,20,24],[19,37,20,39],[21,5,24,8],[30,22,31,28],[30,29,32,35],[32,22,33,28],[30,37,31,43],[12,42,12,49],[15,40,15,41],[15,42,15,49],[16,1,18,8],[16,12,16,19],[16,27,16,34],[16,42,16,49],[17,12,17,19],[17,25,17,26],[17,27,17,34],[17,40,17,41],[17,42,17,49],[10,40,10,41],[13,42,13,49],[14,1,15,8],[14,12,14,19],[14,25,14,26],[14,27,14,34],[14,40,14,41],[14,42,14,49],[15,12,15,19],[15,25,15,26],[15,27,15,34],[12,1,13,8],[12,12,12,19],[12,25,12,26],[12,27,12,34],[12,40,12,41],[78,10,79,20],[80,10,83,20],[101,10,103,20],[10,42,10,49],[11,12,11,19],[11,25,11,26],[11,27,11,34],[11,40,11,41],[11,42,11,49],[13,12,13,19],[13,25,13,26],[13,27,13,34],[13,40,13,41],[10,12,10,19],[10,25,10,26],[10,27,10,34],[14,57,14,64],[14,55,14,56],[30,59,32,65],[32,52,33,58],[71,22,72,35],[30,44,32,50],[32,37,33,43],[48,37,49,50],[64,37,65,50],[55,52,56,65],[57,52,58,65],[17,55,17,56],[17,57,17,64],[19,52,20,54],[78,52,79,65],[10,57,10,64],[10,55,10,56],[50,37,51,50],[21,52,29,65],[30,52,31,58],[35,59,36,65],[13,57,13,64],[13,55,13,56],[12,57,12,64],[12,55,12,56],[11,57,11,64],[11,55,11,56],[16,57,16,64],[15,57,15,64],[15,55,15,56]]}
[]
[]
[]
[]
[]
[]
[]
[null,null,"Notas Iniciales",null,null,null,null,null,null,null,null,"Apartado N°1: Portada",null,null,null,null,null,null,null,null,null,null,"Apartado N°2: Ingresos",null,null,null,null,null,null,null,null,null,null,null,null,null,null,"Apartado N°3: Gastos Operativos ",null,null,null,null,null,null,null,null,null,null,null,null,null,null,"Apartado N°4: Gastos de Personal",null,null,null,null,null,null,null,null,null,null,null,null,null,null,"Apartado N°5: Instructivo"]
[null,"**Al abrir este archivo, recuerda habilitar el contenido para macros.",null,null,null,null,null,null,null,null,null,null,null,null,null,null,null,null,null,null,null,null,null,null,null,2,null,null,null,null,null,null,null,null,null,null,null,null,null,null,2,null,null,null,null,null,null,null,null,null,null,null,null,null,null,2]
[]
[null,null,null,null,null,null,null,null,null,null,1,"Nombre/ Razón Social","NUBOX",null,null,null,null,null,null,null,null,null,null,null,null,"Nombre/ Razón Social",null,{"$f":"+M11","v":"NUBOX"},null,null,null,null,null,null,null,null,null,null,null,null,"Nombre/ Razón Social",null,{"$f":"+AB11","v":"NUBOX"},null,null,null,null,null,null,null,null,null,null,null,null,"Nombre/ Razón Social",null,{"$f":"+AQ11","v":"NUBOX"},null,null,null,null,null,null,null,null,null,1]
[null,null,null,null,null,null,null,null,null,null,2,"RUT","11.111.111-1",null,null,null,null,null,null,null,null,null,null,null,null,"RUT",null,{"$f":"+M12","v":"11.111.111-1"},null,null,null,null,null,null,null,null,null,null,null,null,"RUT",null,{"$f":"+AB12","v":"11.111.111-1"},null,null,null,null,null,null,null,null,null,null,null,null,"RUT",null,{"$f":"+AQ12","v":"11.111.111-1"}]
[null,"** Verificar las opciones avanzadas de tu excel para acceder al formato de trabajo de esta plantilla (Visual Basic).",null,null,null,null,null,null,null,null,3,"Representante Legal","Alexander Russo",null,null,null,null,null,null,null,null,null,null,null,null,"Representante Legal",null,"Alexander Russo",null,null,null,null,null,null,null,null,null,null,null,null,"Representante Legal",null,"Alexander Russo",null,null,null,null,null,null,null,null,null,null,null,null,"Representante Legal",null,"Alexander Russo"]
[null,null,null,null,null,null,null,null,null,null,4,"C.I. Representante Legal","1.111.111-1",null,null,null,null,null,null,null,null,null,null,null,null,"C.I. Representante Legal",null,"1.111.111-1",null,null,null,null,null,null,null,null,null,null,null,null,"C.I. Representante Legal",null,"1.111.111-1",null,null,null,null,null,null,null,null,null,null,null,null,"C.I. Representante Legal",null,"1.111.111-1"]
[null,"*Para guardar el archivo en el computador de trabajo, se debe guardar como documento habilitado para macros.",null,null,null,null,null,null,null,null,5,"Contador ","Dayana Huala",null,null,null,null,null,null,null,null,null,null,null,null,"Contador",null,"Dayana Huala",null,null,null,null,null,null,null,null,null,null,null,null,"Contador",null,"Dayana Huala",null,null,null,null,null,null,null,null,null,null,null,null,"Contador",null,"Dayana Huala",null,null,null,null,null,null,null,null,null,2]
[null,null,null,null,null,null,null,null,null,null,6,"C.I. Contador","1.111.111-1",null,null,null,null,null,null,null,null,null,null,null,null,"C.I. Contador",null,"1.111.111-1",null,null,null,null,null,null,null,null,null,null,null,null,"C.I. Contador",null,"1.111.111-1",null,null,null,null,null,null,null,null,null,null,null,null,"C.I. Contador",null,"1.111.111-1"]
[null,"** Complementa el presupuesto con libros auxiliares para trabajar con montos finales, según los movimientos totales del giro comercial (libro de ingresos y egresos, libro de  compras y ventas, y libro de remuneraciones). ",null,null,null,null,null,null,null,null,7,"Mes","Febrero",null,null,null,null,null,null,null,"Lista desplegable",null,null,null,null,"Mes",null,"Febrero",null,null,null,null,null,null,null,null,null,null,null,null,"Mes",null,"Febrero",null,null,null,null,null,null,null,null,null,null,null,null,"Mes",null,"Febrero"]
[null,null,null,null,null,null,null,null,null,null,8,"Año Comercial",2019,null,null,null,null,null,null,null,null,null,null,null,null,"Año Comercial",null,2019,null,null,null,null,null,null,null,null,null,null,null,null,"Año Comercial",null,2019,null,null,null,null,null,null,null,null,null,null,null,null,"Año Comercial",null,2019]
[null,null,null,null,null,null,null,null,null,null,null,null,null,null,null,null,null,null,null,null,null,null,null,null,null,null,null,null,null,null,null,null,null,null,null,null,null,null,null,null,null,null,null,null,null,null,null,null,null,null,null,null,null,null,null,null,null,null,null,null,null,null,null,null,null,null,null,3]
[null,"**Este libro se llena de manera mensual y se deben guardar sus copias mensuales según mes calendario a trabajar. (Mantener este archvo como documento principal).",null,null,null,null,null,null,null,null,null,null,null,null,null,null,null,null,null,null,null,null,"1.- Indicaciones en el N°10 del primer apartado.",null,null,"2.- El apartado se llena automáticamente, de acuerdo a información proporcionada en el pimer apartado (Portada).",null,null,null,null,null,null,null,null,null,null,null,"1.- Indicaciones en el N°10 del primer apartado.",null,null,"2.- El apartado se llena automáticamente, de acuerdo a información proporcionada en el pimer apartado (Portada).",null,null,null,null,null,null,null,null,null,null,null,"1.- Indicaciones en el N°10 del primer apartado.",null,null,"2.- El apartado se llena automáticamente, de acuerdo a la información proporcionada en el pimer apartado (Portada)."]
[]
[null,null,null,null,null,null,null,null,null,null,null,null,null,null,null,null,null,null,null,null,null,null,null,null,null,null,null,null,null,null,null,null,null,null,null,null,null,null,null,null,null,null,null,null,null,null,null,null,null,null,null,null,null,null,null,null,null,null,null,null,null,null,null,null,null,null,null,4]
[]
[]
[]
[null,"**Al guardar el documento, aparecerá este mensaje, el cual deberá aceptar para respetar fórmulas."]
[]
[]
[null,null,null,null,null,null,null,null,null,null,null,null,null,null,null,null,null,null,null,null,null,null,null,null,null,null,null,null,null,null,null,null,null,null,null,null,null,null,null,null,null,null,null,null,null,null,null,null,null,null,null,null,null,null,null,null,null,null,null,null,null,null,null,null,null,null,null,"1.- Ícono para volver al menú principal."]
[null,null,null,null,null,null,null,null,null,null,"1.- Nombre/ Razón Social: correspondiente al inscrito al momento del inicio de actividades. ",null,null,null,null,null,null,null,null,null,null,null,null,null,null,null,null,null,null,null,null,null,null,null,null,null,null,null,null,null,null,null,null,null,null,null,null,null,null,null,null,null,null,null,null,null,null,null,null,null,null,null,null,null,null,null,null,"2.- Botón para ir a visualisar el apartado N°2: Ingresos."]
[null,null,null,null,null,null,null,null,null,null,"2.- RUT: Rol Único Tributario Asignado por el Servicio de Impuestos Internos (SII).",null,null,null,null,null,null,null,null,null,null,null,"3.- Gastos Operativos: corresponde a la planilla de gastos operativos, donde al pinchar sobre el ícono se deriva inmediatamente al apartado de gastos operativos.",null,null,null,null,null,null,"6.- Ícono de ayuda, cada vez que se presione te recordará que debes verificar la información de ingresos recien digitalizados. (Se debe aceptar para continuar trabajando).",null,null,null,null,null,null,null,"3.- Sección Ingresos: corresponde a la planilla de ingresos, donde al pinchar sobre el ícono se deriva inmediatamente al apartado de ingresos.",null,null,null,null,null,null,"6.- Ícono de ayuda, cada vez que se presione te recordará que debes verificar la información de gastos operativos recien digitalizados. (Se debe aceptar para continuar trabajando).",null,null,null,null,null,null,null,"3.- Sección Ingresos: corresponde a la planilla de ingresos, donde al pinchar sobre el ícono se deriva inmediatamente al apartado de ingresos.",null,null,null,null,null,null,null,null,null,null,null,null,null,null,"3.-Botón para ir a visualizar el apartado N°3: Gastos Operativos."]
[null,null,null,null,null,null,null,null,null,null,"3.- Representante Legal: corresponde aquel contribuyente autorizado en el Servicio de Impuestos Internos (SII)",null,null,null,null,null,null,null,null,null,null,null,null,null,null,null,null,null,null,null,null,null,null,null,null,null,null,null,null,null,null,null,null,null,null,null,null,null,null,null,null,null,null,null,null,null,null,null,null,null,null,null,null,null,null,null,null,"4.- Botón para ir a visualizar el apartado N°4: Gastos de Personal."]
[null,null,null,null,null,null,null,null,null,null,"4.- C.I. Representante Legal: Cédula de Identidad del Representante Legal Autorizado.",null,null,null,null,null,null,null,null,null,null,null,"4.-Gastos de Personal: corresponde a la planilla de gastos de personal, donde al pinchar sobre ícono se deriva inmediatamente al apartado de gastos de personal.",null,null,null,null,null,null,null,null,null,null,null,null,null,null,"4.-Gastos de Personal: corresponde a la planilla de gastos de personal, donde al pinchar sobre ícono se deriva inmediatamente al apartado de gastos de personal.",null,null,null,null,null,null,null,null,null,null,null,null,null,null,"4.-Gastos Operativos: corresponde a la planilla de gastos operativos, donde al pinchar sobre el ícono se deriva inmediatamente al apartado de Gastos Operativos."]
[null,"**Al abrir el documento, se desplegará este mensaje. Hacer clic en no actualizar, para mantener fórmulas",null,null,null,null,null,null,null,null,"5.- Contador: nombre del contador  a cargo del llenado",null,null,null,null,null,null,null,null,null,null,null,null,null,null,null,null,null,null,"7.-ícono para acceder al instructivo desde la sección de ingresos (Apartado N°2).",null,null,null,null,null,null,null,null,null,null,null,null,null,null,"7.-Ícono para acceder al instructivo desde la sección de gastos operativos (Apartado N°3)."]
[null,null,null,null,null,null,null,null,null,null,"6.- C.I. Contador: Cédula de Identidad del ontador a cargo del llenado",null,null,null,null,null,null,null,null,null,null,null,"5.- Ícono para volver al menú principal.",null,null,null,null,null,null,null,null,null,null,null,null,null,null,"5.- Ícono para volver al menú principal.",null,null,null,null,null,null,null,null,null,null,null,null,null,null,"5.- Ícono para volver al menú principal."]
[null,null,null,null,null,null,null,null,null,null,"7.- Mes: mes correspondiente a completar. Éste se selecciona de lista desplegable",null,null,null,null,null,null,null,null,null,null,null,null,null,null,null,null,null,null,null,null,null,null,null,null,null,null,null,null,null,null,null,null,null,null,null,null,null,null,null,null,null,null,null,null,null,null,null,null,"6.- Ícono de ayuda, cada vez que se presione te recordará que debes verificar la información de gastos operativos recien digitalizados. (se debe aceptar, para continuar trabajando)."]
[null,null,null,null,null,null,null,null,null,null,"8.- Año Comercial: año comercial correspondiente ",null,null,null,null,null,null,null,null,null,null,null,null,null,8,null,9,10,null,11,null,12,null,null,null,null,null,null,null,8,null,null,9,null,10,11,null,12]
[null,null,null,null,null,null,null,null,null,null,null,null,null,null,null,null,null,null,null,null,null,null,null,null,null,null,null,null,null,null,null,null,null,null,null,null,null,null,null,null,null,null,null,null,null,null,null,null,null,null,null,null,null,null,null,null,null,null,null,"7.-Ícono para acceder al instructivo desde la sección de gastos de personal (Apartado N°4)."]
[null,null,null,null,null,null,null,null,null,null,"9-",null,null,null,null,null,null,"9.- Al pinchar sobre el logo, obtendrá información para realizar el cambio de logo a la empresa correspondiente que utilizará la planilla. Se debe hacer click derecho y seleccionar cambiar imagen. Realizar este procedimiento no afecta el mensaje que entrega la alerta. Finalmente, debe seleccionar aceptar, para seguir realizando el llenado. (Se repite en el apartado N°2 de Ingresos; N°3 de gastos operativos y N°4 de gastos de personal)."]
[null,null,null,null,null,null,null,null,null,null,null,null,null,null,null,null,null,null,null,null,null,null,null,null,null,null,null,null,null,null,null,null,null,null,null,null,null,null,null,null,null,null,null,null,null,null,null,null,null,null,null,null,null,null,null,null,8,null,9,10,null,11,null,12]
[]
[]
[]
[]
[]
[]
[]
[null,null,null,null,null,null,null,null,null,null,null,null,null,null,null,null,null,null,null,null,null,null,"8.- Ingresos:  se debe individualizar el tipo de ingreso que se considerará en el presupuesto. Se dejan como ejemplo: ventas netas, ingresos por intereses, ventas de activos."]
[null,null,null,null,null,null,null,null,null,null,null,null,null,null,null,null,null,null,null,null,null,null,"9.-Estimado: se coloca el valor estimado de lo que se considerará como ingreso. Se recomienda entre un 5% y un 10%, dependiendo los movimientos del ingreso en el mes anterior",null,null,null,null,null,null,null,null,null,null,null,null,null,null,"8.- Gastos operativos:  se deben individualizar todos los gastos operativos de la empresa para ingresar al presupuesto. Se dejan como ejemplo aquellos ingresados en la planilla (arriendos, almacenamiento, despacho, teléfono, entre otros)."]
[null,null,null,null,null,null,null,null,null,null,null,null,null,null,null,null,null,null,null,null,null,null,"10.-Real: valores reales que se deben ingresar al presupuesto de acuerdo a los movimientos percibidos por la empresa."]
[null,null,null,null,null,null,null,null,null,null,null,null,null,null,null,null,null,null,null,null,"Mensaje de Alerta",null,"11.- Diferencia: cálculo por diferencia entre los montos estimados y los valores reales.",null,null,null,null,null,null,null,null,null,null,null,null,null,null,"9.-Estimado: considerar el valor estimado de lo que se considerará como gasto operativo. Se recomienda entre un 5% y un 10% dependiendo de los movimientos de los gastos operativos en el mes anterior"]
[null,null,null,null,null,null,null,null,null,null,null,null,null,null,null,null,null,null,null,null,null,null,"12.- Variación %: se refleja el % de variación de los ingresos, de los valores estimados de acuerdo a los movimientos del mes anterior y los valores reales."]
[null,null,null,null,null,null,null,null,null,null,null,null,null,null,null,null,null,null,null,null,null,null,null,null,null,null,null,null,null,null,null,null,null,null,null,null,null,"10.-Real: Valores reales que se deben ingresar al presupuesto, de acuerdo a los movimientos devengados por la empresa, asociados a los gastos operativos."]
[null,null,null,null,null,null,null,null,null,null,null,null,null,null,null,null,null,null,null,null,null,null,"13.- Gráfico de Ingresos del presupuesto.",null,null,null,null,null,null,null,null,null,null,null,null,null,null,"11.- Diferencia: cálculo por diferencia entre los montos estimados y los valores reales en los gastos operativos"]
[null,null,null,null,null,null,null,null,null,null,null,null,null,null,null,null,null,null,null,null,null,null,null,null,null,null,null,null,null,null,null,null,null,null,null,null,null,"12.- Variación %: se refleja el % de variación de los gastos operativos, de los valores estimados de acuerdo a los movimientos del mes anterior y los valores reales."]
[null,null,null,null,null,null,null,null,null,null,null,null,null,null,null,null,null,null,null,null,null,null,null,null,null,null,null,null,null,null,null,null,null,null,null,null,null,"13.- Gráfico de Gastos Operativos del Presupuesto",null,null,null,null,null,null,null,null,null,null,null,null,null,null,"8.- Gastos de personal:  se deben individualizar todos los gastos de personal de la empresa para ingresar al presupuesto. Se dejan como ejemplo aquellos ingresados en la planilla (Sueldo, honorarios, etc.)."]
[null,null,null,null,null,null,null,null,null,null,10]
[null,null,null,null,null,null,null,null,null,null,null,null,null,null,null,null,null,null,null,null,null,null,null,null,null,null,null,null,null,null,null,null,null,null,null,null,null,null,null,null,null,null,null,null,null,null,null,null,null,null,null,null,"9.-Estimado: considerar el valor estimado de lo que se considerará como gasto de personal. Se recomienda entre un 5% y un 10%, dependiendo de los movimientos de los gastos de personal en el mes anterior."]
[]
[null,null,null,null,null,null,null,null,null,null,null,null,null,null,null,null,null,null,null,null,null,null,null,null,null,null,null,null,null,null,null,null,null,null,null,null,null,null,null,null,null,null,null,null,null,null,null,null,null,null,null,null,"10.-Real: valores reales que se deben ingresar al presupuesto, de acuerdo a los movimientos percibidos por la empresa asociados a los gastos de personal."]
[null,null,null,null,null,null,null,null,null,null,null,null,null,null,null,null,null,null,null,null,null,null,null,null,null,null,null,null,null,null,null,null,null,null,null,null,null,null,null,null,null,null,null,null,null,null,null,null,null,null,null,null,"11.- Diferencia: cálculo por diferencia entre los montos estimados y los valores reales en los gastos de personal."]
[null,null,null,null,null,null,null,null,null,null,null,null,null,null,null,null,null,null,null,null,null,null,null,null,null,null,null,null,null,null,null,null,null,null,null,null,null,null,null,null,null,null,null,null,null,null,null,null,null,null,null,null,"12.- Variación %: se refleja el % de variación de los gastos de personal, de los valores estimados de acuerdo a los movimientos del mes anterior y los valores reales."]
[]
[null,null,null,null,null,null,null,null,null,null,"10.- Ícono de ayuda: entrega un mensaje de alerta para leer el instrutivo, antes del llenado del documento. Finalmente, debe aceptar para continuar trabajando.",null,null,null,null,null,null,null,null,null,null,null,null,null,null,null,null,null,null,null,null,null,null,null,null,null,null,null,null,null,null,null,null,null,null,null,null,null,null,null,null,null,"13.- Gráfico de Gastos de Personal del Presupuesto"]
[null,null,null,null,null,null,null,null,null,null,"11.- Ícono de Instructivo: en éste encontrarás toda la información necesaria para el llenado de la planilla de presupuesto; ingresos, gastos operativos y gastos de personal.",null,null,null,null,null,null,null,null,null,null,null,null,null,null,null,null,null,null,null,null,null,null,null,null,null,null,"** El gráfico reflejará  los movimientos del cuadro de los gastos operativos, donde se podrán identificar visualmente los estandarés establecidos entre lo estimado y lo real, considerando los % de variaciones de los distintos ítems"]
[null,null,null,null,null,null,null,null,null,null,"12.- Sección Ingresos: corresponde a la planilla de ingresos, donde al pinchar sobre el ícono se deriva inmediatamente al apartado de ingresos."]
[null,null,null,null,null,null,null,null,null,null,"13.- Gastos Operativos: corresponde a la planilla de gastos operativos, donde al pinchar sobre el ícono se deriva inmediatamente al apartado de gastos operativos."]
[null,null,null,null,null,null,null,null,null,null,"14.-Gastos de Personal: corresponde a la planilla de gastos de personal, donde al pinchar sobre el ícono se deriva inmediatamente al apartado de gastos de personal."]
[null,null,null,null,null,null,null,null,null,null,null,"15.-"]
[]
[]
[null,null,null,null,null,null,null,null,null,null,null,null,null,null,null,null,null,null,null,null,null,null,"** El gráfico reflejará  los movimientos del cuadro de ingresos, donde se podrán identificar visualmente los estándares establecidos entre lo estimado y lo real, considerando los % de variaciones de los distintos ítems"]
[]
[]
[]
[]
[]
[]
[null,null,null,null,null,null,null,null,null,null,"15.- El cuadro de resumen corresponde al cálculo automático de la planilla de ingresos y gastos (operativos+personal). Considera lo estimado y los movimientos que se generan en el mes realmente. (Incluye el % de variación).",null,null,null,null,null,null,null,null,null,null,null,null,null,null,null,null,null,null,null,null,null,null,null,null,null,null,null,null,null,null,null,null,null,null,null,null,null,null,null,null,null,"** El gráfico reflejará  los movimientos del cuadro de los gastos de personal, donde se podrán identificar visualmente los estandarés establecidos entre lo estimado y lo real, considerando los % de variaciones de los distintos ítems."]
[]
[null,null,null,null,null,null,null,null,null,null,"** Para un mejor monto estimado, se recomienda tomar de referencia el mes anterior y generar variaciones entre un 5% y 10% para aumentar los ingresos estimados y un 5% y 10%  para disminuir los gastos estimados al mes siguiente, para un óptimo cumplimiento del presupuesto entre lo estimado y los movimientos reales. El cuadro de resumen trabajará como alerta para equilibrar los moviemitnos de ingresos y gastos (opertivos + personal)."]
[]
[]
[]
[]
[null,null,null,null,null,null,null,null,null,null,"16.- Gráfico de Resumen"]
[]
[]
[]
[]
[]
[]
[]
[]
[]
[]
[]
[]
[]
[]
[]
[null,null,null,null,null,null,null,null,null,null,"** El gráfico reflejará  los movimientos del cuadro de resumen, donde se podrán identificar visualmente los estandarés establecidos entre lo estimado y lo real de los ingresos y gastos (operativos+personal)"]

{"sheet":"Hoja1","index":5,"n_rows":16,"n_cols":6,"rows_kept":16,"cut":false,"hidden":true,"merged":[]}
[]
[]
[]
[]
[null,"Enero ",null,"RUT EMISOR"]
[null,"Febrero",null,"RUT RECEPTOR"]
[null,"Marzo"]
[null,"Abril"]
[null,"Mayo",null,"INGRESOS $","PERCIBIDOS","DEVENGADOS"]
[null,"Junio",null,"EGRESOS $","PAGADOS","ADEUDADOS"]
[null,"Julio"]
[null,"Agosto"]
[null,"Septiembre",null,"INGRESOS DEVENGADOS CON ANTERIORIDAD AL INGRESO AL RÉGIMEN  O AL 31-12-2014"]
[null,"Octubre",null,"GASTOS ADEUDADOS CON ANTERIORIDAD AL INGRESO AL RÉGIMEN O AL 31-12-2014"]
[null,"Noviembre"]
[null,"Diciembre"]